fUSD/lending_fUSD_20250417
["ID","MTS","AMOUNT","RATE_DAILY","PERIOD"]
[358243912,1744873838560,-298.5838742,0.0004866,4]
[358243914,1744873838570,-549.24834,0.0004882,85]
[358243917,1744873838580,-2335.94312482,0.00049,2]
[358243919,1744873838590,-18003.35672493,0.000491,120]
[358243920,1744873838599,-202.07984555,0.00049109,14]
[358243923,1744873838608,-12147.07817618,0.000492,120]
[358243924,1744873838618,-5400.39673566,0.00049205,15]
[358243926,1744873838627,-1272.62263086,0.00049214,21]
[358243929,1744873838637,-760.5672,0.00049215,10]
[358243931,1744873838646,-272.73586381,0.00049294,120]
[358243933,1744873838655,-500.0,0.00049294,120]
[358243935,1744873838665,-500.0,0.00049294,120]
[358243937,1744873838674,-500.0,0.00049294,120]
[358243939,1744873838684,-476.34219329,0.00049294,120]
[358243941,1744873838694,-500.0,0.00049294,120]
[358243943,1744873838704,-500.0,0.00049294,120]
[358243945,1744873838713,-500.0,0.00049294,120]
[358243947,1744873838723,-500.0,0.00049294,120]
[358243949,1744873838733,-500.0,0.00049294,120]
[358243951,1744873838742,-23129.7744557,0.00049295,4]
[358243953,1744873838752,-150.0000004,0.000493,120]
[358243955,1744873838761,-109097.25371998,0.00049304,120]
[358243957,1744873838770,-265992.40624,0.00049305,4]
[358243959,1744873838779,-31145.87941175,0.00049305,4]
[358243961,1744873838791,-2683.6833661,0.00049305,4]
[358243980,1744873839997,-1500.0,0.00049305,4]
[358243981,1744873840140,-477.81285925,0.00049305,4]
[358243982,1744873840153,-13160.3488959,0.00049305,4]
[358243983,1744873840164,-24478.010763,0.00049305,2]
[358243984,1744873840174,-212.68623052,0.00049305,7]
[358243985,1744873840183,-300.0,0.00049314,30]
[358243986,1744873840194,-312.94997787,0.00049314,30]
[358243987,1744873840203,-516.21389677,0.00049314,120]
[358243988,1744873840212,-515.024,0.00049314,86]
[358243989,1744873840222,-151302.08034442,0.00049315,2]
[358243990,1744873840231,-380.9389093,0.00049315,2]
[358243991,1744873840240,-217.54094,0.00049315,120]
[358243992,1744873840249,-616.858825,0.00049315,120]
[358243993,1744873840259,-156.040031,0.00049315,120]
[358243994,1744873840268,-187.402755,0.00049315,120]
[358243995,1744873840277,-151.0,0.00049315,14]
[358243996,1744873840287,-500.0,0.00049315,120]
[358243997,1744873840296,-151.0,0.00049315,14]
[358243998,1744873840306,-151.63571,0.00049315,14]
[358243999,1744873840315,-2741.87,0.00049315,120]
[358244000,1744873840325,-742.28,0.00049315,120]
[358244001,1744873840338,-151.0,0.00049315,14]
[358244002,1744873840348,-151.0,0.00049315,14]
[358244003,1744873840357,-151.0,0.00049315,14]
[358244004,1744873840368,-151.0,0.00049315,14]
[358244005,1744873840378,-151.0,0.00049315,14]
[358244006,1744873840388,-177.54365,0.00049315,14]
[358244007,1744873840398,-500.0,0.00049315,120]
[358244008,1744873840408,-502.4435849,0.00049315,120]
[358244009,1744873840419,-168.462315,0.00049315,120]
[358244010,1744873840429,-156.987081,0.00049315,120]
[358244011,1744873840440,-151.0,0.00049315,14]
[358244012,1744873840450,-151.0,0.00049315,14]
[358244013,1744873840460,-151.0,0.00049315,14]
[358244014,1744873840469,-151.0,0.00049315,14]
[358244015,1744873840479,-151.0,0.00049315,14]
[358244016,1744873840489,-168.136728,0.00049315,14]
[358244017,1744873840499,-500.0,0.00049315,120]
[358244018,1744873840509,-225.345596,0.00049315,120]
[358244019,1744873840519,-500.0,0.00049315,120]
[358244020,1744873840529,-500.0,0.00049315,120]
[358244021,1744873840539,-516.0,0.00049315,120]
[358244022,1744873840548,-246.21208624,0.00049315,60]
[358244023,1744873840557,-224.215162,0.00049315,120]
[358244024,1744873840568,-168.462309,0.00049315,120]
[358244025,1744873840577,-500.0,0.00049315,120]
[358244026,1744873840586,-614.13120668,0.00049315,120]
[358244028,1744873840595,-510.73057018,0.00049315,120]
[358244030,1744873840605,-825.74,0.00049315,120]
[358244031,1744873840614,-1309.03,0.00049315,120]
[358244032,1744873840624,-500.0,0.00049315,120]
[358244033,1744873840633,-500.0,0.00049315,120]
[358244034,1744873840643,-1025.99,0.00049315,120]
[358244035,1744873840652,-500.0,0.00049315,120]
[358244036,1744873840662,-616.96221061,0.00049315,120]
[358244038,1744873840671,-500.0,0.00049315,120]
[358244040,1744873840681,-995.71,0.00049315,120]
[358244042,1744873840691,-500.0,0.00049315,120]
[358244044,1744873840700,-500.0,0.00049315,120]
[358244046,1744873840709,-1535.69,0.00049315,120]
[358244048,1744873840718,-2354.85,0.00049315,120]
[358244049,1744873840728,-582.12,0.00049315,120]
[358244050,1744873840737,-500.0,0.00049315,120]
[358244051,1744873840746,-200.0,0.00049315,7]
[358244052,1744873840756,-31742.97,0.00049315,7]
[358244053,1744873840765,-113338.5,0.00049315,7]
[358244054,1744873840775,-157.443609,0.00049315,14]
[358244055,1744873840786,-1597.3,0.00049315,120]
[358244056,1744873840796,-500.0,0.00049315,120]
[358244057,1744873840806,-151.0,0.00049315,14]
[358244058,1744873840815,-9556.32,0.00049315,2]
[358244059,1744873840825,-500.0,0.00049315,120]
[358244060,1744873840835,-500.0,0.00049315,120]
[358244061,1744873840845,-151.0,0.00049315,14]
[358244062,1744873840855,-151.0,0.00049315,14]
[358244063,1744873840865,-541.28,0.00049315,120]
[358244064,1744873840875,-151.0,0.00049315,14]
[358244065,1744873840885,-500.0,0.00049315,120]
[358244066,1744873840895,-500.0,0.00049315,120]
[358244067,1744873840904,-151.0,0.00049315,14]
[358244068,1744873840914,-500.0,0.00049315,120]
[358244069,1744873840924,-500.0,0.00049315,120]
[358244070,1744873840934,-500.0,0.00049315,120]
[358244071,1744873840943,-500.0,0.00049315,120]
[358244072,1744873840953,-512.7784685,0.00049315,30]
[358244073,1744873840962,-500.0,0.00049315,120]
[358244074,1744873840972,-296.42644172,0.00049315,120]
[358244075,1744873840981,-500.0,0.00049315,120]
[358244076,1744873840991,-500.0,0.00049315,120]
[358244077,1744873841000,-500.0,0.00049315,120]
[358244078,1744873841011,-500.0,0.00049315,120]
[358244079,1744873841019,-500.0,0.00049315,120]
[358244080,1744873841029,-500.0,0.00049315,120]
[358244081,1744873841039,-2548.09,0.00049315,120]
[358244082,1744873841048,-507.47,0.00049315,120]
[358244083,1744873841057,-519.16,0.00049315,120]
[358244084,1744873841067,-500.0,0.00049315,120]
[358244085,1744873841077,-500.0,0.00049315,120]
[358244086,1744873841086,-620.67811355,0.00049315,120]
[358244087,1744873841096,-500.0,0.00049315,120]
[358244088,1744873841105,-572.9632454,0.00049315,120]
[358244089,1744873841114,-626.45376071,0.00049315,120]
[358244090,1744873841124,-151.0,0.00049315,14]
[358244091,1744873841134,-151.0,0.00049315,14]
[358244092,1744873841144,-620.84408845,0.00049315,120]
[358244093,1744873841154,-500.0,0.00049315,120]
[358244094,1744873841163,-1575.92,0.00049315,120]
[358244095,1744873841172,-500.0,0.00049315,120]
[358244096,1744873841182,-500.0,0.00049315,120]
[358244097,1744873841191,-213.892963,0.00049315,14]
[358244098,1744873841201,-500.0,0.00049315,120]
[358244099,1744873841211,-605.07,0.00049315,120]
[358244100,1744873841220,-500.0,0.00049315,120]
[358244101,1744873841230,-1825.0,0.00049315,120]
[358244102,1744873841239,-151.0,0.00049315,14]
[358244103,1744873841248,-500.0,0.00049315,120]
[358244104,1744873841258,-500.0,0.00049315,120]
[358244105,1744873841268,-500.0,0.00049315,120]
[358244106,1744873841278,-546.74114975,0.00049315,120]
[358244107,1744873841288,-701.01,0.00049315,120]
[358244108,1744873841298,-500.0,0.00049315,120]
[358244109,1744873841310,-500.0,0.00049315,120]
[358244110,1744873841320,-500.0,0.00049315,120]
[358244111,1744873841333,-219.519273,0.00049315,14]
[358244112,1744873841343,-690.41,0.00049315,120]
[358244113,1744873841353,-219.519273,0.00049315,14]
[358244114,1744873841363,-512.80684232,0.00049315,120]
[358244115,1744873841372,-500.0,0.00049315,120]
[358244116,1744873841383,-500.0,0.00049315,120]
[358244117,1744873841392,-500.0,0.00049315,120]
[358244118,1744873841403,-500.0,0.00049315,120]
[358244119,1744873841413,-151.0,0.00049315,14]
[358244120,1744873841424,-151.0,0.00049315,14]
[358244121,1744873841434,-500.0,0.00049315,120]
[358244122,1744873841443,-500.0,0.00049315,120]
[358244123,1744873841453,-521.54,0.00049315,120]
[358244124,1744873841462,-500.0,0.00049315,120]
[358244125,1744873841471,-500.0,0.00049315,120]
[358244126,1744873841481,-500.0,0.00049315,120]
[358244127,1744873841490,-151.0,0.00049315,14]
[358244128,1744873841501,-151.0,0.00049315,14]
[358244129,1744873841510,-500.0,0.00049315,120]
[358244130,1744873841519,-500.0,0.00049315,120]
[358244131,1744873841530,-500.0,0.00049315,120]
[358244132,1744873841540,-500.0,0.00049315,120]
[358244133,1744873841551,-500.0,0.00049315,120]
[358244134,1744873841560,-2016.34,0.00049315,120]
[358244135,1744873841570,-500.0,0.00049315,120]
[358244136,1744873841579,-500.0,0.00049315,120]
[358244137,1744873841589,-500.0,0.00049315,120]
[358244138,1744873841598,-500.0,0.00049315,120]
[358244139,1744873841608,-500.0,0.00049315,120]
[358244140,1744873841617,-500.0,0.00049315,120]
[358244141,1744873841626,-151.0,0.00049315,14]
[358244142,1744873841636,-1000.0,0.00049315,120]
[358244143,1744873841645,-151.0,0.00049315,14]
[358244144,1744873841655,-500.0,0.00049315,120]
[358244145,1744873841664,-151.0,0.00049315,14]
[358244146,1744873841673,-151.0,0.00049315,14]
[358244147,1744873841682,-151.0,0.00049315,14]
[358244148,1744873841691,-239.3183,0.00049315,14]
[358244149,1744873841700,-500.0,0.00049315,120]
[358244150,1744873841710,-500.0,0.00049315,120]
[358244151,1744873841719,-500.0,0.00049315,120]
[358244152,1744873841729,-500.0,0.00049315,120]
[358244153,1744873841738,-500.0,0.00049315,120]
[358244154,1744873841748,-500.0,0.00049315,120]
[358244155,1744873841758,-500.0,0.00049315,120]
[358244156,1744873841768,-151.0,0.00049315,14]
[358244157,1744873841777,-151.0,0.00049315,14]
[358244158,1744873841787,-500.0,0.00049315,120]
[358244159,1744873841796,-500.0,0.00049315,120]
[358244160,1744873841806,-151.0,0.00049315,14]
[358244161,1744873841816,-151.0,0.00049315,14]
[358244162,1744873841825,-500.0,0.00049315,120]
[358244163,1744873841844,-447.10932046,0.00049315,120]
[358244164,1744873841857,-646.45583617,0.00049315,120]
[358244165,1744873841866,-500.0,0.00049315,120]
[358244166,1744873841875,-151.0,0.00049315,14]
[358244167,1744873841885,-500.0,0.00049315,120]
[358244168,1744873841894,-626.02,0.00049315,120]
[358244169,1744873841904,-242.64038369,0.00049315,120]
[358244170,1744873841914,-500.0,0.00049315,120]
[358244171,1744873841922,-1588.85,0.00049315,120]
[358244172,1744873841932,-500.0,0.00049315,120]
[358244173,1744873841941,-158.811424,0.00049315,120]
[358244174,1744873841950,-500.0,0.00049315,120]
[358244175,1744873841960,-500.0,0.00049315,120]
[358244176,1744873841970,-500.0,0.00049315,120]
[358244177,1744873841980,-500.0,0.00049315,120]
[358244178,1744873841990,-158.097723,0.00049315,120]
[358244179,1744873842000,-151.0,0.00049315,14]
[358244180,1744873842009,-151.0,0.00049315,14]
[358244181,1744873842018,-500.0,0.00049315,120]
[358244182,1744873842028,-2102.94,0.00049315,120]
[358244183,1744873842037,-500.0,0.00049315,120]
[358244184,1744873842046,-151.0,0.00049315,14]
[358244185,1744873842056,-500.0,0.00049315,120]
[358244186,1744873842065,-151.0,0.00049315,14]
[358244187,1744873842075,-500.0,0.00049315,120]
[358244188,1744873842084,-500.0,0.00049315,120]
[358244189,1744873842093,-500.0,0.00049315,120]
[358244190,1744873842103,-500.0,0.00049315,120]
[358244191,1744873842113,-282.22513484,0.00049315,120]
[358244192,1744873842122,-500.0,0.00049315,120]
[358244193,1744873842132,-500.0,0.00049315,120]
[358244194,1744873842142,-500.0,0.00049315,120]
[358244195,1744873842152,-500.0,0.00049315,120]
[358244196,1744873842161,-1117.34,0.00049315,120]
[358244197,1744873842171,-500.0,0.00049315,120]
[358244198,1744873842180,-500.0,0.00049315,120]
[358244199,1744873842190,-500.0,0.00049315,120]
[358244200,1744873842200,-500.0,0.00049315,120]
[358244201,1744873842209,-500.0,0.00049315,120]
[358244202,1744873842218,-500.0,0.00049315,2]
[358244203,1744873842227,-500.0,0.00049315,120]
[358244204,1744873842237,-771.13,0.00049315,14]
[358244205,1744873842246,-500.0,0.00049315,120]
[358244206,1744873842255,-493.71918415,0.00049315,120]
[358244207,1744873842265,-745.85,0.00049315,120]
[358244208,1744873842274,-500.0,0.00049315,120]
[358244209,1744873842283,-500.0,0.00049315,120]
[358244210,1744873842292,-500.0,0.00049315,120]
[358244211,1744873842302,-119.7932197,0.00049315,120]
[358244212,1744873842907,-441.0367803,0.00049315,120]
[358244213,1744873842917,-158.9632197,0.00049315,120]
[358244222,1744873844650,-341.0367803,0.00049315,120]
[358244223,1744873844660,-957.9,0.00049315,120]
[358244224,1744873844669,-500.0,0.00049315,120]
[358244225,1744873844678,-500.0,0.00049315,120]
[358244226,1744873844688,-68.41781506,0.00049315,120]
[358244227,1744873844703,-431.58218494,0.00049315,120]
[358244228,1744873844712,-1065.32,0.00049315,120]
[358244229,1744873844722,-1660.23,0.00049315,120]
[358244230,1744873844731,-500.0,0.00049315,120]
[358244231,1744873844741,-2650.25,0.00049315,120]
[358244232,1744873844750,-500.50996824,0.00049315,120]
[358244233,1744873844760,-408.75052994,0.00049315,35]
[358244234,1744873844770,-753.98947006,0.00049315,35]
[358244235,1744873844779,-2.54213174,0.00049315,120]
[358244236,1744873844789,-604.51786826,0.00049315,120]
[358244237,1744873844797,-500.0,0.00049315,120]
[358244238,1744873844806,-151.0,0.00049315,14]
[358244239,1744873844814,-151.0,0.00049315,14]
[358244240,1744873844823,-511.53274264,0.00049315,120]
[358244241,1744873844831,-511.91,0.00049315,120]
[358244242,1744873844840,-151.0,0.00049315,14]
[358244243,1744873844849,-1481.85,0.00049315,120]
[358244244,1744873844857,-151.0,0.00049315,14]
[358244245,1744873844866,-510.76451233,0.00049315,120]
[358244246,1744873844874,-500.0,0.00049315,120]
[358244247,1744873844882,-1301.86,0.00049315,120]
[358244248,1744873844890,-500.0,0.00049315,120]
[358244249,1744873844897,-525.0,0.00049315,120]
[358244250,1744873844905,-1112.85,0.00049315,120]
[358244251,1744873844914,-500.0,0.00049315,120]
[358244252,1744873844923,-500.0,0.00049315,120]
[358244253,1744873844932,-500.0,0.00049315,120]
[358244254,1744873844941,-500.0,0.00049315,120]
[358244255,1744873844949,-1490.87,0.00049315,120]
[358244256,1744873844957,-151.0,0.00049315,14]
[358244257,1744873844965,-500.0,0.00049315,120]
[358244258,1744873844973,-500.0,0.00049315,14]
[358244259,1744873844981,-500.0,0.00049315,120]
[358244260,1744873844989,-1641.99,0.00049315,120]
[358244261,1744873844997,-500.0,0.00049315,120]
[358244262,1744873845005,-500.0,0.00049315,120]
[358244263,1744873845013,-500.0,0.00049315,120]
[358244264,1744873845021,-500.0,0.00049315,120]
[358244265,1744873845029,-500.0,0.00049315,120]
[358244266,1744873845037,-500.0,0.00049315,120]
[358244267,1744873845045,-185.579221,0.00049315,14]
[358244268,1744873845053,-185.579221,0.00049315,14]
[358244269,1744873845061,-500.0,0.00049315,120]
[358244270,1744873845069,-1417.65,0.00049315,120]
[358244271,1744873845078,-500.0,0.00049315,120]
[358244272,1744873845086,-500.0,0.00049315,120]
[358244273,1744873845094,-185.579221,0.00049315,14]
[358244274,1744873845102,-531.89,0.00049315,120]
[358244275,1744873845110,-185.579221,0.00049315,14]
[358244276,1744873845119,-500.0,0.00049315,120]
[358244277,1744873845130,-2221.8,0.00049315,120]
[358244278,1744873845139,-151.0,0.00049315,14]
[358244279,1744873845149,-500.0,0.00049315,120]
[358244280,1744873845158,-151.0,0.00049315,14]
[358244281,1744873845167,-151.0,0.00049315,14]
[358244282,1744873845176,-151.0,0.00049315,14]
[358244283,1744873845186,-536.8733054,0.00049315,120]
[358244284,1744873845195,-500.0,0.00049315,120]
[358244285,1744873845204,-500.0,0.00049315,120]
[358244286,1744873845213,-359.69960649,0.00049315,120]
[358244287,1744873845222,-500.0,0.00049315,120]
[358244288,1744873845232,-1005.5,0.00049315,120]
[358244289,1744873845241,-500.0,0.00049315,120]
[358244290,1744873845250,-526.38,0.00049315,120]
[358244291,1744873845259,-568.14,0.00049315,120]
[358244292,1744873845269,-568.14,0.00049315,120]
[358244293,1744873845278,-500.0,0.00049315,120]
[358244294,1744873845287,-504.11838068,0.00049315,120]
[358244295,1744873845298,-562.14850365,0.00049315,120]
[358244296,1744873845309,-151.0,0.00049315,14]
[358244297,1744873845318,-805.39,0.00049315,120]
[358244298,1744873845332,-151.0,0.00049315,14]
[358244299,1744873845341,-500.0,0.00049315,120]
[358244300,1744873845351,-500.0,0.00049315,120]
[358244301,1744873845363,-230.815036,0.00049315,14]
[358244302,1744873845374,-500.0,0.00049315,120]
[358244303,1744873845384,-500.0,0.00049315,120]
[358244304,1744873845393,-1247.97,0.00049315,120]
[358244305,1744873845403,-500.0,0.00049315,120]
[358244306,1744873845413,-500.0,0.00049315,120]
[358244307,1744873845422,-194.96897677,0.00049315,120]
[358244308,1744873845431,-500.0,0.00049315,120]
[358244309,1744873845441,-500.0,0.00049315,120]
[358244310,1744873845451,-500.0,0.00049315,120]
[358244311,1744873845461,-500.0,0.00049315,120]
[358244312,1744873845470,-500.0,0.00049315,120]
[358244313,1744873845480,-1111.63,0.00049315,120]
[358244314,1744873845493,-535.94,0.00049315,120]
[358244315,1744873845502,-500.0,0.00049315,120]
[358244316,1744873845512,-500.0,0.00049315,120]
[358244317,1744873845523,-528.44,0.00049315,120]
[358244318,1744873845533,-500.0,0.00049315,120]
[358244319,1744873845544,-856.98,0.00049315,120]
[358244320,1744873845553,-1380.52,0.00049315,120]
[358244321,1744873845564,-308.01229418,0.00049315,120]
[358244322,1744873845573,-500.0,0.00049315,120]
[358244323,1744873845586,-500.0,0.00049315,120]
[358244324,1744873845600,-543.86,0.00049315,120]
[358244325,1744873845614,-500.0,0.00049315,120]
[358244326,1744873845628,-725.22,0.00049315,120]
[358244327,1744873845638,-584.22,0.00049315,120]
[358244328,1744873845650,-500.0,0.00049315,120]
[358244329,1744873845663,-500.0,0.00049315,120]
[358244332,1744873845675,-1007.93,0.00049315,120]
[358244334,1744873845687,-500.0,0.00049315,120]
[358244335,1744873845700,-500.0,0.00049315,120]
[358244336,1744873845713,-730.87,0.00049315,120]
[358244337,1744873845726,-1002.79,0.00049315,120]
[358244338,1744873845738,-500.0,0.00049315,120]
[358244339,1744873845749,-500.0,0.00049315,120]
[358244340,1744873845761,-534.84057992,0.00049315,120]
[358244341,1744873845774,-500.0,0.00049315,120]
[358244342,1744873845787,-500.0,0.00049315,120]
[358244343,1744873845800,-540.43,0.00049315,120]
[358244344,1744873845813,-500.0,0.00049315,120]
[358244345,1744873845827,-500.0,0.00049315,120]
[358244346,1744873845840,-980.92,0.00049315,120]
[358244347,1744873845853,-500.0,0.00049315,120]
[358244348,1744873845866,-500.0,0.00049315,120]
[358244349,1744873845878,-500.0,0.00049315,120]
[358244350,1744873845892,-512.80556907,0.00049315,120]
[358244351,1744873845904,-1109.98,0.00049315,120]
[358244352,1744873845917,-500.0,0.00049315,120]
[358244353,1744873845929,-875.56,0.00049315,120]
[358244354,1744873845941,-500.0,0.00049315,120]
[358244355,1744873845952,-1749.89,0.00049315,120]
[358244356,1744873845966,-825.81,0.00049315,120]
[358244357,1744873845981,-500.0,0.00049315,120]
[358244358,1744873845994,-2000.0,0.00049315,2]
[358244359,1744873846007,-500.0,0.00049315,120]
[358244360,1744873846019,-507.96859142,0.00049315,120]
[358244361,1744873846032,-1326.13,0.00049315,120]
[358244362,1744873846042,-1174.27,0.00049315,120]
[358244363,1744873846055,-500.0,0.00049315,120]
[358244364,1744873846067,-500.0,0.00049315,120]
[358244365,1744873846082,-401.41421723,0.00049315,120]
[358244366,1744873846094,-500.0,0.00049315,120]
[358244367,1744873846105,-138.20397323,0.00049315,120]
[358244368,1744873846130,-361.79602677,0.00049315,120]
[358244369,1744873846142,-500.0,0.00049315,120]
[358244371,1744873846154,-1781.08,0.00049315,120]
[358244373,1744873846168,-521.20257305,0.00049315,120]
[358244375,1744873846180,-500.0,0.00049315,120]
[358244376,1744873846191,-1135.14,0.00049315,120]
[358244377,1744873846201,-500.0,0.00049315,120]
[358244378,1744873846212,-2433.38,0.00049315,120]
[358244379,1744873846228,-500.0,0.00049315,120]
[358244380,1744873846239,-151.0,0.00049315,14]
[358244381,1744873846250,-500.0,0.00049315,120]
[358244382,1744873846262,-542.06443327,0.00049315,120]
[358244383,1744873846273,-151.0,0.00049315,14]
[358244384,1744873846283,-500.0,0.00049315,120]
[358244386,1744873846294,-506.41504585,0.00049315,120]
[358244387,1744873846305,-500.0,0.00049315,120]
[358244388,1744873846316,-500.0,0.00049315,120]
[358244389,1744873846330,-501.69755837,0.00049315,120]
[358244390,1744873846341,-500.0,0.00049315,120]
[358244391,1744873846353,-570.29900027,0.00049315,120]
[358244392,1744873846364,-1161.6,0.00049315,120]
[358244393,1744873846376,-571.86,0.00049315,120]
[358244394,1744873846387,-501.54167596,0.00049315,120]
[358244395,1744873846398,-500.0,0.00049315,120]
[358244396,1744873846411,-500.0,0.00049315,120]
[358244397,1744873846423,-473.95491367,0.00049315,120]
[358244398,1744873846434,-1389.88,0.00049315,30]
[358244399,1744873846446,-500.0,0.00049315,120]
[358244400,1744873846457,-500.0,0.00049315,120]
[358244401,1744873846469,-629.47,0.00049315,120]
[358244402,1744873846480,-500.0,0.00049315,120]
[358244403,1744873846491,-1649.99,0.00049315,120]
[358244404,1744873846503,-500.0,0.00049315,120]
[358244405,1744873846515,-500.0,0.00049315,120]
[358244406,1744873846527,-1178.0,0.00049315,120]
[358244407,1744873846539,-500.0,0.00049315,120]
[358244408,1744873846551,-1140.06,0.00049315,120]
[358244409,1744873846563,-500.0,0.00049315,120]
[358244410,1744873846576,-751.62,0.00049315,120]
[358244411,1744873846588,-1281.64,0.00049315,120]
[358244412,1744873846599,-500.0,0.00049315,7]
[358244413,1744873846611,-500.0,0.00049315,120]
[358244414,1744873846622,-300.0,0.00049315,120]
[358244415,1744873846634,-795.34,0.00049315,120]
[358244416,1744873846645,-151.0,0.00049315,14]
[358244417,1744873846657,-1131.67,0.00049315,120]
[358244418,1744873846668,-601.29524987,0.00049315,120]
[358244419,1744873846680,-1940.72,0.00049315,120]
[358244420,1744873846691,-705.74,0.00049315,120]
[358244421,1744873846703,-947.54,0.00049315,120]
[358244422,1744873846714,-500.0,0.00049315,120]
[358244423,1744873846725,-567.97,0.00049315,120]
[358244424,1744873846737,-1158.33,0.00049315,120]
[358244425,1744873846749,-500.0,0.00049315,120]
[358244426,1744873846761,-539.02,0.00049315,120]
[358244427,1744873846773,-1028.53,0.00049315,120]
[358244428,1744873846785,-683.79,0.00049315,120]
[358244429,1744873846796,-500.0,0.00049315,120]
[358244430,1744873846807,-170.550339,0.00049315,14]
[358244431,1744873846819,-515.09011453,0.00049315,120]
[358244432,1744873846830,-500.0,0.00049315,120]
[358244433,1744873846842,-790.5,0.00049315,120]
[358244434,1744873846853,-1000.0,0.00049315,120]
[358244435,1744873846865,-2804.36,0.00049315,120]
[358244436,1744873846877,-659.83,0.00049315,120]
[358244437,1744873846887,-519.65691792,0.00049315,120]
[358244438,1744873846899,-500.0,0.00049315,120]
[358244439,1744873846909,-170.550339,0.00049315,14]
[358244440,1744873846920,-170.550339,0.00049315,14]
[358244441,1744873846931,-500.0,0.00049315,120]
[358244442,1744873846944,-1877.24,0.00049315,120]
[358244443,1744873846955,-537.8,0.00049315,120]
[358244444,1744873846966,-500.0,0.00049315,120]
[358244445,1744873846977,-621.1406273,0.00049315,120]
[358244446,1744873846988,-500.0,0.00049315,120]
[358244447,1744873846999,-500.0,0.00049315,120]
[358244448,1744873847010,-1066.19,0.00049315,120]
[358244449,1744873847022,-500.0,0.00049315,120]
[358244450,1744873847034,-379.24667567,0.00049315,120]
[358244451,1744873847054,-120.75332433,0.00049315,120]
[358244452,1744873847066,-500.0,0.00049315,120]
[358244453,1744873847078,-1642.74,0.00049315,120]
[358244454,1744873847089,-500.0,0.00049315,120]
[358244455,1744873847101,-500.0,0.00049315,120]
[358244456,1744873847112,-500.0,0.00049315,120]
[358244457,1744873847123,-500.0,0.00049315,120]
[358244458,1744873847134,-151.0,0.00049315,14]
[358244459,1744873847145,-500.0,0.00049315,120]
[358244460,1744873847155,-151.0,0.00049315,14]
[358244461,1744873847166,-1044.82,0.00049315,120]
[358244462,1744873847178,-355.25272025,0.00049315,120]
[358244463,1744873847188,-500.0,0.00049315,120]
[358244464,1744873847199,-500.0,0.00049315,120]
[358244465,1744873847210,-1511.82,0.00049315,120]
[358244466,1744873847221,-500.0,0.00049315,30]
[358244467,1744873847232,-151.0,0.00049315,14]
[358244468,1744873847243,-151.0,0.00049315,14]
[358244469,1744873847255,-500.0,0.00049315,120]
[358244470,1744873847266,-500.0,0.00049315,120]
[358244471,1744873847277,-2015.14,0.00049315,120]
[358244472,1744873847288,-500.0,0.00049315,120]
[358244473,1744873847300,-151.0,0.00049315,14]
[358244474,1744873847313,-151.0,0.00049315,14]
[358244475,1744873847326,-565.15154646,0.00049315,120]
[358244476,1744873847340,-151.0,0.00049315,14]
[358244477,1744873847352,-151.0,0.00049315,14]